fUST/lending_fUST_20251119
["ID","MTS","AMOUNT","RATE_DAILY","PERIOD"]
[394411729,1763541041129,-430.05531192,0.0001915,2]
[394411731,1763541041139,-500.0,0.0001915,2]
[394411733,1763541041148,-500.0,0.0001915,2]
[394411734,1763541041157,-500.0,0.0001915,2]
[394411737,1763541041168,-513.38764164,0.0001915,2]
[394411739,1763541041177,-500.0,0.0001915,2]
[394411741,1763541041187,-500.0,0.0001915,2]
[394411743,1763541041197,-500.0,0.0001915,2]
[394411745,1763541041207,-587.0,0.00019158,2]
[394411747,1763541041217,-204.0,0.00019159,2]
[394411749,1763541041227,-720.0,0.00019159,2]
[394411751,1763541041236,-153.84547182,0.00019178,2]
[394411753,1763541041247,-6096.50590769,0.00019232,2]
[394411755,1763541041256,-560.0,0.00019323,2]
[394411757,1763541041266,-2351.0,0.00019351,2]
[394411759,1763541041277,-577.16532933,0.0001936,2]
[394411761,1763541041286,-6096.50590769,0.00019482,2]
[394411763,1763541041295,-3000.0,0.00019626,2]
[394411765,1763541041305,-3000.0,0.00019626,2]
[394411767,1763541041316,-598.41210041,0.00019626,2]
[394411769,1763541041325,-535.99228928,0.00019698,2]
[394411771,1763541041334,-1000.0,0.00019698,2]
[394411773,1763541041343,-1000.0,0.00019698,2]
[394411775,1763541041352,-1015.5092663,0.00019698,2]
[394411777,1763541041364,-1000.0,0.00019698,2]
[394411779,1763541041373,-1000.0,0.00019698,2]
[394411781,1763541041383,-229.41128076,0.00019698,2]
[394411783,1763541041391,-1000.0,0.00019698,2]
[394411785,1763541041401,-1003.44060064,0.00019698,2]
[394411787,1763541041410,-151.0,0.000197,2]
[394411789,1763541041420,-151.0,0.000197,2]
[394411791,1763541041430,-506.25578774,0.00019727,2]
[394411793,1763541041438,-500.0,0.00019727,2]
[394411795,1763541041447,-6102.6024136,0.00019733,2]
[394411797,1763541041456,-864.0,0.00019783,2]
[394411799,1763541041466,-500.0,0.00019856,2]
[394411801,1763541041475,-500.0,0.00019856,2]
[394411803,1763541041484,-768.81066452,0.00019871,2]
[394411805,1763541041494,-500.0,0.00019973,2]
[394411807,1763541041502,-500.0,0.00019973,2]
[394411809,1763541041513,-500.0,0.00019973,2]
[394411811,1763541041521,-500.0,0.00019973,2]
[394411813,1763541041531,-500.0,0.00019973,2]
[394411815,1763541041540,-500.0,0.00019973,2]
[394411817,1763541041551,-500.0,0.00019973,2]
[394411819,1763541041560,-470.80631433,0.00019973,2]
[394411821,1763541041569,-500.0,0.00019973,2]
[394411823,1763541041578,-501.38434486,0.0002,2]
[394411826,1763541041588,-3500.0,0.00020174,2]
[394411828,1763541041598,-3500.0,0.00020174,2]
[394411830,1763541041607,-571.301326,0.00020187,2]
[394411831,1763541041616,-1040.56070445,0.00020246,2]
[394411834,1763541041626,-1500.0,0.00020246,2]
[394411836,1763541041635,-1500.0,0.00020246,2]
[394411837,1763541041644,-502.99408635,0.00020246,2]
[394411840,1763541041653,-1514.93271038,0.00020246,2]
[394411842,1763541041663,-183.10083734,0.00020275,2]
[394411843,1763541041672,-151.0,0.000203,3]
[394411845,1763541041681,-151.0,0.000203,4]
[394411847,1763541041691,-263.88541376,0.00020404,2]
[394411849,1763541041701,-1000.0,0.00020404,2]
[394411851,1763541041711,-1000.0,0.00020521,2]
[394411853,1763541041720,-1004.58010999,0.00020521,2]
[394411855,1763541041731,-1000.0,0.00020521,2]
[394411857,1763541041740,-1000.0,0.00020521,2]
[394411859,1763541041749,-1000.0,0.00020521,2]
[394411861,1763541041760,-505.05635559,0.00020521,2]
[394411864,1763541041770,-631.4111994,0.00020521,2]
[394411865,1763541041779,-224.53442318,0.00020555,3]
[394411867,1763541041790,-898.13769271,0.00020555,3]
[394411869,1763541041799,-270.72980695,0.0002066,3]
[394411871,1763541041808,-1082.9192278,0.0002066,3]
[394411873,1763541041818,-482.04353464,0.0002066,3]
[394411875,1763541041827,-1928.17413854,0.0002066,3]
[394411877,1763541041837,-3000.0,0.00020722,2]
[394411879,1763541041847,-2000.0,0.00020722,2]
[394411881,1763541041856,-151.0,0.000209,4]
[394411883,1763541041865,-151.0,0.000209,4]
[394411885,1763541041875,-823.0,0.00020946,2]
[394411888,1763541041884,-1500.0,0.00020952,2]
[394411889,1763541041894,-505.60972619,0.00020973,2]
[394411892,1763541041905,-501.18009364,0.00020973,2]
[394411893,1763541041914,-610.10221103,0.00021068,2]
[394411896,1763541041923,-1500.0,0.00021068,2]
[394411898,1763541041932,-1500.0,0.00021068,2]
[394411900,1763541041943,-1007.28708574,0.00021068,2]
[394411902,1763541041959,-231.0,0.00021159,2]
[394411904,1763541041968,-664.0,0.00021263,2]
[394411906,1763541041978,-2000.0,0.000215,2]
[394411908,1763541041988,-151.0,0.000215,4]
[394411910,1763541041997,-151.0,0.000215,3]
[394411912,1763541042007,-500.0,0.00021532,2]
[394411914,1763541042016,-500.0,0.00021532,2]
[394411916,1763541042027,-503.70002224,0.00021532,2]
[394411918,1763541042039,-1987.15738357,0.00021616,2]
[394411920,1763541042051,-1735.96333372,0.00021616,2]
[394411922,1763541042061,-1000.0,0.00021761,20]
[394411924,1763541042071,-840.5469122,0.00021918,7]
[394411927,1763541042080,-163.28,0.00022,7]
[394411928,1763541042089,-494.88981819,0.00022048,2]
[394411931,1763541042099,-151.0,0.00022068,7]
[394411932,1763541042108,-229.279246,0.00022068,7]
[394411935,1763541042117,-229.279246,0.00022068,7]
[394411936,1763541042126,-229.279246,0.00022068,7]
[394411938,1763541042136,-229.279246,0.00022068,7]
[394411939,1763541042146,-1002.68621881,0.0002208,2]
[394411940,1763541042156,-501.01226821,0.0002208,2]
[394411941,1763541042166,-202.66,0.000221,2]
[394411942,1763541042176,-151.0,0.00022101,7]
[394411943,1763541042185,-151.0,0.00022101,7]
[394411944,1763541042195,-151.0,0.00022101,7]
[394411945,1763541042205,-275.283086,0.00022101,7]
[394411946,1763541042216,-260.616892,0.00022101,2]
[394411947,1763541042225,-260.616892,0.00022101,2]
[394411948,1763541042234,-260.616892,0.00022101,2]
[394411949,1763541042244,-260.616892,0.00022101,2]
[394411951,1763541042253,-239.491418,0.00022101,7]
[394411952,1763541042263,-151.0,0.00022101,7]
[394411954,1763541042272,-229.279246,0.00022101,7]
[394411956,1763541042281,-229.279246,0.00022101,7]
[394411958,1763541042290,-229.279246,0.00022101,7]
[394411960,1763541042300,-229.279246,0.00022101,7]
[394411962,1763541042310,-151.0,0.00022101,7]
[394411964,1763541042320,-124086.51043313,0.00022101,2]
[394411966,1763541042338,-4479.83744723,0.00022101,2]
[394411969,1763541042348,-314.4785267,0.00022101,2]
[394411971,1763541042395,-500.0,0.0001603,2]
[394411972,1763541042404,-500.0,0.00016031,2]
[394411973,1763541042413,-500.0,0.00016031,2]
[394411974,1763541042422,-500.0,0.00016031,2]
[394411975,1763541042431,-500.0,0.00016349,2]
[394411976,1763541042441,-286.01183776,0.0001662,2]
[394411977,1763541042450,-2140.50630495,0.00022101,2]
[394411978,1763541042460,-18585.02958284,0.00022101,2]
[394411979,1763541042472,-68614.28091372,0.00022101,2]
[394412004,1763541043331,-559.10829464,0.00022101,2]
[394412021,1763541384236,-1198.0,0.00015925,2]
[394412022,1763541529440,524.0,0.00015925,2]
[394412023,1763541567054,10000.0,0.00040635,20]
[394412024,1763541818787,48969.15,0.00017,20]
[394412025,1763541818828,41606.9895803,0.00017,20]
[394412027,1763541856404,2138.9575971,0.00014995,2]
[394412028,1763541872205,5000.0,0.00014995,2]
[394412029,1763541887028,162.8478339,0.00014961,2]
[394412030,1763541910818,233.51889342,0.00040651,120]
[394412031,1763541919256,5000.0,0.00040651,120]
[394412032,1763541919896,5185.0,0.00040651,30]
[394412033,1763541920554,5376.845,0.00040651,80]
[394412034,1763541921249,5575.788265,0.00040651,30]
[394412035,1763541921867,5782.09243081,0.00040651,120]
[394412037,1763542218977,1940.51467567,0.0004065,120]
[394412074,1763542232539,-1000.0,0.00015024,2]
[394412075,1763542232548,-150.0,0.00015053,2]
[394412076,1763542232558,-800.0,0.000151,2]
[394412077,1763542232567,-300.0,0.0001514,2]
[394412078,1763542232576,-300.0,0.0001514,2]
[394412079,1763542232585,-1200.0,0.0001514,2]
[394412080,1763542232595,-300.0,0.0001514,2]
[394412081,1763542232605,-300.0,0.0001514,2]
[394412082,1763542232614,-232.05064153,0.0001514,2]
[394412083,1763542232623,-500.0,0.0001514,2]
[394412084,1763542232632,-643.21389672,0.0001514,2]
[394412085,1763542232641,-1200.0,0.00015141,2]
[394412086,1763542232650,-5073.0268207,0.00015141,2]
[394412087,1763542232661,-365.2134167,0.00015141,2]
[394412105,1763542238075,-970.15111902,0.0001514,2]
[394412107,1763542238085,-500.0,0.0001514,2]
[394412109,1763542238095,-362.28194891,0.0001514,2]
[394412111,1763542238105,-500.0,0.0001514,2]
[394412113,1763542238115,-500.0,0.0001514,2]
[394412115,1763542238125,-500.0,0.0001514,2]
[394412117,1763542238135,-500.0,0.0001514,2]
[394412129,1763542238243,-970.15111902,0.0001514,2]
[394412131,1763542238258,-500.0,0.0001514,2]
[394412133,1763542238268,-500.0,0.0001514,2]
[394412135,1763542238278,-416.24465727,0.0001514,2]
[394412137,1763542238288,-500.0,0.0001514,2]
[394412139,1763542238303,-500.0,0.0001514,2]
[394412141,1763542238312,-970.15111902,0.0001514,2]
[394412143,1763542238322,-500.0,0.0001514,2]
[394412145,1763542238331,-500.0,0.0001514,2]
[394412148,1763542238343,-382.41963676,0.0001514,2]
[394412150,1763542238355,-117.58036324,0.0001514,2]
[394412151,1763542238364,-970.15111902,0.0001514,2]
[394412153,1763542238374,-500.0,0.0001514,2]
[394412156,1763542238384,-500.0,0.0001514,2]
[394412157,1763542238394,-500.0,0.0001514,2]
[394412159,1763542238403,-970.15111902,0.0001514,2]
[394412162,1763542238413,-500.0,0.0001514,2]
[394412163,1763542238423,-500.0,0.0001514,2]
[394412165,1763542238432,-970.15111902,0.0001514,2]
[394412167,1763542238442,-512.64163411,0.0001514,2]
[394412169,1763542238451,-500.0,0.0001514,2]
[394412171,1763542238461,-970.15111902,0.0001514,2]
[394412173,1763542238470,-500.0,0.0001514,2]
[394412176,1763542238481,-500.0,0.0001514,2]
[394412177,1763542238491,-970.15111902,0.0001514,2]
[394412179,1763542238505,-500.0,0.0001514,2]
[394412181,1763542238514,-500.0,0.0001514,2]
[394412183,1763542238524,-970.15111902,0.0001514,2]
[394412185,1763542238533,-500.0,0.0001514,2]
[394412188,1763542238544,-500.0,0.0001514,2]
[394412190,1763542238553,-500.0,0.0001514,2]
[394412192,1763542238563,-970.15111902,0.0001514,2]
[394412194,1763542238572,-500.0,0.0001514,2]
[394412196,1763542238582,-500.0,0.0001514,2]
[394412198,1763542238591,-970.15111902,0.0001514,2]
[394412200,1763542238601,-500.0,0.0001514,2]
[394412202,1763542238612,-500.0,0.0001514,2]
[394412204,1763542238621,-500.0,0.0001514,2]
[394412206,1763542238630,-970.15111902,0.0001514,2]
[394412208,1763542238639,-500.0,0.0001514,2]
[394412210,1763542238648,-500.0,0.0001514,2]
[394412212,1763542238658,-500.0,0.0001514,2]
[394412214,1763542238679,-970.15111902,0.0001514,2]
[394412216,1763542238687,-500.0,0.0001514,2]
[394412218,1763542238697,-500.0,0.0001514,2]
[394412220,1763542238706,-970.15111902,0.0001514,2]
[394412222,1763542238716,-500.0,0.0001514,2]
[394412224,1763542238726,-493.89831195,0.0001514,2]
[394412226,1763542238736,-970.15111902,0.0001514,2]
[394412228,1763542238746,-500.0,0.0001514,2]
[394412230,1763542238755,-500.0,0.0001514,2]
[394412232,1763542238764,-970.15111902,0.0001514,2]
[394412234,1763542238774,-345.44176558,0.0001514,2]
[394412236,1763542238783,-970.15111902,0.0001514,2]
[394412238,1763542238793,-500.0,0.0001514,2]
[394412240,1763542238803,-500.0,0.0001514,2]
[394412242,1763542238812,-970.15111902,0.0001514,2]
[394412245,1763542238822,-500.0,0.0001514,2]
[394412247,1763542238832,-970.15111902,0.0001514,2]
[394412248,1763542238841,-500.0,0.0001514,2]
[394412251,1763542238851,-500.0,0.0001514,2]
[394412253,1763542238861,-500.0,0.0001514,2]
[394412255,1763542238871,-970.15111902,0.0001514,2]
[394412257,1763542238882,-500.0,0.0001514,2]
[394412259,1763542238891,-500.0,0.0001514,2]
[394412261,1763542238904,-970.15111902,0.0001514,2]
[394412263,1763542238914,-500.0,0.0001514,2]
[394412264,1763542238924,-970.15111902,0.0001514,2]
[394412267,1763542238933,-500.0,0.0001514,2]
[394412269,1763542238944,-500.0,0.0001514,2]
[394412271,1763542238954,-970.15111902,0.0001514,2]
[394412273,1763542238965,-500.0,0.0001514,2]
[394412275,1763542238975,-970.15111902,0.0001514,2]
[394412277,1763542238984,-970.15111902,0.0001514,2]
[394412279,1763542238995,-970.15111902,0.0001514,2]
[394412281,1763542239004,-500.0,0.0001514,2]
[394412283,1763542239014,-970.15111902,0.0001514,2]
[394412285,1763542239024,-970.15111902,0.0001514,2]
[394412287,1763542239034,-500.0,0.0001514,2]
[394412289,1763542239043,-970.15111902,0.0001514,2]
[394412291,1763542239053,-970.15111902,0.0001514,2]
[394412293,1763542239062,-970.15111902,0.0001514,2]
[394412295,1763542239073,-500.0,0.0001514,2]
[394412297,1763542239082,-970.15111902,0.0001514,2]
[394412299,1763542239092,-970.15111902,0.0001514,2]
[394412301,1763542239102,-970.15111902,0.0001514,2]
[394412303,1763542239112,-970.15111902,0.0001514,2]
[394412305,1763542239122,-970.15111902,0.0001514,2]
[394412307,1763542239132,-970.15111902,0.0001514,2]
[394412309,1763542239142,-970.15111902,0.0001514,2]
[394412310,1763542239152,-970.15111902,0.0001514,2]
[394412313,1763542239162,-970.15111902,0.0001514,2]
[394412315,1763542239172,-970.15111902,0.0001514,2]
[394412317,1763542239182,-970.15111902,0.0001514,2]
[394412318,1763542239192,-970.15111902,0.0001514,2]
[394412319,1763542239201,-970.15111902,0.0001514,2]
[394412320,1763542239210,-970.15111902,0.0001514,2]
[394412321,1763542239220,-970.15111902,0.0001514,2]
[394412322,1763542239229,-970.15111902,0.0001514,2]
[394412323,1763542239238,-970.15111902,0.0001514,2]
[394412324,1763542239248,-970.15111902,0.0001514,2]
[394412325,1763542239258,-970.15111902,0.0001514,2]
[394412326,1763542239268,-970.15111902,0.0001514,2]
[394412327,1763542239279,-970.15111902,0.0001514,2]
[394412328,1763542239288,-970.15111902,0.0001514,2]
[394412329,1763542239301,-970.15111902,0.0001514,2]
[394412330,1763542239311,-970.15111902,0.0001514,2]
[394412331,1763542239320,-970.15111902,0.0001514,2]
[394412332,1763542239330,-970.15111902,0.0001514,2]
[394412333,1763542239341,-970.15111902,0.0001514,2]
[394412334,1763542239351,-44561.7597626,0.00015141,2]
[394412336,1763542239360,-500.0,0.00015142,2]
[394412338,1763542239371,-500.0,0.00015143,2]
[394412340,1763542239380,-24791.2979236,0.00015143,2]
[394412342,1763542239390,-500.0,0.00015173,2]
[394412344,1763542239398,-506.69049003,0.00015173,2]
[394412346,1763542239407,-500.0,0.00015173,2]
[394412348,1763542239416,-500.0,0.00015173,2]
[394412350,1763542239424,-502.19973818,0.00015173,2]
[394412352,1763542239433,-506.29595838,0.00015173,2]
[394412354,1763542239443,-500.0,0.00015173,2]
[394412356,1763542239452,-505.49963257,0.00015173,2]
[394412358,1763542239462,-500.0,0.00015173,2]
[394412360,1763542239472,-500.0,0.00015173,2]
[394412362,1763542239481,-507.6968814,0.00015173,2]
[394412364,1763542239490,-500.0,0.00015173,2]
[394412365,1763542239500,-500.0,0.00015173,2]
[394412367,1763542239509,-500.0,0.00015173,2]
[394412369,1763542239518,-500.0,0.00015173,2]
[394412371,1763542239529,-500.0,0.00015173,2]
[394412373,1763542239538,-500.0,0.00015173,2]
[394412375,1763542239547,-500.0,0.00015173,2]
[394412377,1763542239556,-500.0,0.00015173,2]
[394412379,1763542239565,-500.0,0.00015173,2]
[394412381,1763542239574,-500.0,0.00015173,2]
[394412383,1763542239583,-500.0,0.00015173,2]
[394412385,1763542239592,-500.0,0.00015173,2]
[394412387,1763542239601,-263.70606165,0.00015173,2]
[394412389,1763542239610,-506.10151376,0.00015173,2]
[394412391,1763542239618,-500.0,0.00015416,2]
[394412393,1763542239627,-500.0,0.0001569,2]
[394412395,1763542239644,-1000.0,0.00015721,2]
[394412398,1763542239655,-1000.0,0.00015721,2]
[394412399,1763542239664,-502.26261043,0.00015721,2]
[394412401,1763542239673,-1001.77337171,0.00015721,2]
[394412403,1763542239682,-1000.0,0.00015721,2]
[394412405,1763542239691,-1000.0,0.00015721,2]
[394412407,1763542239701,-1000.0,0.00015721,2]
[394412410,1763542239710,-1000.0,0.00015721,2]
[394412412,1763542239719,-1000.0,0.00015721,2]
[394412414,1763542239728,-325.78165932,0.00015721,2]
[394412415,1763542239737,-1000.0,0.00015721,2]
[394412417,1763542239746,-1000.0,0.00015721,2]
[394412419,1763542239755,-1000.0,0.00015721,2]
[394412422,1763542239764,-500.81441983,0.00015721,2]
[394412425,1763542239773,-305.81187291,0.00015721,2]
[394412428,1763542239783,-1000.0,0.00015721,2]
[394412430,1763542239792,-1000.0,0.00015721,2]
[394412432,1763542239801,-1004.69879942,0.00015721,2]
[394412434,1763542239810,-500.0,0.00015732,2]
[394412436,1763542239818,-263.7431718,0.00015809,2]
[394412438,1763542239828,-500.0,0.00015923,2]
[394412441,1763542239837,-500.0,0.0001595,2]
[394412443,1763542239846,-500.0,0.00015964,2]
[394412445,1763542239855,-506.7958722,0.00015973,2]
[394412447,1763542239865,-500.0,0.00015973,2]
[394412449,1763542239874,-500.0,0.00015973,2]
[394412451,1763542239883,-500.0,0.00015973,2]
[394412453,1763542239891,-500.0,0.00015978,2]
[394412455,1763542239900,-500.0,0.00016005,2]
[394412457,1763542239909,-495.42104687,0.00016022,2]
[394412459,1763542239918,-500.0,0.00016023,2]
[394412461,1763542239928,-500.0,0.00016023,2]
[394412463,1763542239937,-524.15073761,0.00016023,2]
[394412465,1763542239947,-500.0,0.00016023,2]
[394412467,1763542239956,-532.66965828,0.00016023,2]
[394412469,1763542239965,-1000.0,0.00016024,2]
[394412471,1763542239975,-1000.0,0.00016024,2]
[394412473,1763542239984,-1007.6700603,0.00016024,2]
[394412475,1763542239993,-500.0,0.00016025,2]
[394412476,1763542240002,-500.0,0.00016025,2]
[394412478,1763542240011,-151.0,0.00016025,2]
[394412480,1763542240020,-151.0,0.00016025,2]
[394412482,1763542240030,-1229.2938748,0.00016026,2]
[394412484,1763542240039,-530.23893886,0.00016028,2]
[394412486,1763542240049,-500.0,0.00016033,2]
[394412488,1763542240058,-500.0,0.00016052,2]
[394412490,1763542240067,-500.0,0.00016052,2]
[394412492,1763542240076,-254.3822629,0.00016052,2]
[394412494,1763542240085,-151.0,0.00016052,2]
[394412496,1763542240094,-500.0,0.0001606,2]
[394412498,1763542240103,-503.65604025,0.00016073,2]
[394412500,1763542240112,-500.0,0.00016073,2]
[394412502,1763542240121,-501.07532964,0.00016073,2]
[394412504,1763542240130,-500.0,0.00016073,2]
[394412506,1763542240140,-500.0,0.00016073,2]
[394412508,1763542240149,-506.21040193,0.00016073,2]
[394412510,1763542240158,-500.0,0.00016073,2]
[394412512,1763542240168,-500.0,0.00016073,2]
[394412513,1763542240178,-500.0,0.0001608,2]
[394412514,1763542240187,-500.0,0.0001608,2]
[394412515,1763542240196,-151.0,0.0001608,2]
[394412516,1763542240205,-500.0,0.00016107,2]
[394412517,1763542240214,-500.0,0.00016107,2]
[394412518,1763542240223,-301.08719922,0.00016107,2]
[394412519,1763542240232,-500.0,0.00016135,2]
[394412520,1763542240242,-500.0,0.00016135,2]
[394412521,1763542240251,-500.0,0.00016162,2]
[394412522,1763542240260,-500.0,0.00016162,2]
[394412524,1763542240269,-441.68803233,0.00016189,2]
[394412526,1763542240279,-83806.36964115,0.00016196,2]
[394412528,1763542240289,-500.0,0.00016238,2]
[394412530,1763542240302,-1107.98317633,0.00016268,2]
[394412532,1763542240313,-1535.51572243,0.00016268,2]
[394412534,1763542240324,-1500.0,0.00016268,2]
[394412536,1763542240335,-1500.0,0.00016268,2]
[394412537,1763542240346,-1500.0,0.00016268,2]
[394412538,1763542240360,-1500.0,0.00016268,2]
[394412539,1763542240372,-506.33799268,0.00016268,2]
[394412540,1763542240383,-1500.0,0.00016268,2]
[394412541,1763542240398,-1500.0,0.00016268,2]
[394412542,1763542240410,-1500.0,0.00016268,2]
[394412543,1763542240421,-1500.0,0.00016268,2]
[394412544,1763542240433,-524.87998137,0.00016268,2]
[394412545,1763542240445,-1000.0,0.0001628,2]
[394412546,1763542240456,-300.0,0.00016344,2]
[394412547,1763542240468,-300.0,0.00016344,2]
[394412548,1763542240482,-300.0,0.00016346,2]
[394412549,1763542240501,-300.0,0.00016346,2]
[394412550,1763542240519,-300.0,0.00016347,2]
[394412551,1763542240544,-300.0,0.00016347,2]
[394412552,1763542240557,-300.0,0.00016347,2]
[394412553,1763542240568,-300.0,0.00016348,2]
[394412554,1763542240578,-300.0,0.00016348,2]
[394412555,1763542240589,-300.0,0.00016348,2]
[394412556,1763542240603,-500.0,0.00016438,2]
[394412557,1763542240614,-500.0,0.00016438,2]
[394412558,1763542240625,-500.0,0.00016438,2]
[394412559,1763542240636,-500.0,0.00016438,2]
[394412560,1763542240647,-500.0,0.00016438,2]
[394412561,1763542240658,-467.18232728,0.00016438,2]
[394412562,1763542240669,-500.0,0.00016438,2]
[394412563,1763542240680,-500.0,0.00016438,2]
[394412564,1763542240691,-500.0,0.00016438,2]
[394412565,1763542240702,-500.0,0.00016438,2]
[394412566,1763542240710,-500.0,0.00016438,2]
[394412567,1763542240720,-500.0,0.00016438,2]
[394412568,1763542240730,-500.0,0.00016438,2]
[394412569,1763542240741,-500.0,0.00016438,2]
[394412570,1763542240753,-500.0,0.00016438,2]
[394412571,1763542240763,-500.0,0.00016438,2]
[394412572,1763542240773,-164.83576739,0.00016438,2]
[394412573,1763542240783,-500.0,0.00016438,2]
[394412574,1763542240792,-500.0,0.00016438,2]
[394412575,1763542240803,-500.0,0.00016438,2]
[394412576,1763542240812,-500.0,0.00016438,2]
[394412577,1763542240821,-500.0,0.00016438,2]
[394412578,1763542240834,-500.0,0.00016438,2]
[394412579,1763542240934,-500.0,0.00016438,2]
[394412580,1763542240944,-500.0,0.00016438,2]
[394412581,1763542240953,-500.0,0.00016438,2]
[394412582,1763542240963,-500.0,0.00016438,2]
[394412583,1763542240973,-500.0,0.00016438,2]
[394412584,1763542240982,-500.0,0.00016438,2]
[394412585,1763542240992,-500.0,0.00016438,2]
[394412586,1763542241002,-500.0,0.00016438,2]
[394412587,1763542241013,-500.0,0.00016438,2]
[394412588,1763542241022,-500.0,0.00016438,2]
[394412589,1763542241044,-500.0,0.00016438,2]
[394412590,1763542241054,-500.0,0.00016438,2]
[394412591,1763542241063,-500.0,0.00016438,2]
[394412592,1763542241072,-500.0,0.00016438,2]
[394412593,1763542241083,-500.0,0.00016438,2]
[394412594,1763542241093,-500.0,0.00016438,2]
[394412595,1763542241102,-500.0,0.00016438,2]
[394412596,1763542241111,-500.0,0.00016438,2]
[394412597,1763542241121,-500.0,0.00016438,2]
[394412598,1763542241131,-500.0,0.00016438,2]
[394412599,1763542241141,-500.0,0.00016438,2]
[394412600,1763542241151,-500.0,0.00016438,2]
[394412601,1763542241160,-500.0,0.00016438,2]
[394412602,1763542241170,-471.26251211,0.00016438,2]
[394412603,1763542241180,-500.0,0.00016438,2]
[394412604,1763542241189,-500.0,0.00016438,2]
[394412605,1763542241199,-500.0,0.00016438,2]
[394412606,1763542241209,-500.0,0.00016438,2]
[394412607,1763542241219,-500.0,0.00016438,2]
[394412608,1763542241228,-500.0,0.00016438,2]
[394412609,1763542241237,-500.0,0.00016438,2]
[394412610,1763542241246,-500.0,0.00016438,2]
[394412611,1763542241255,-500.0,0.00016438,2]
[394412612,1763542241264,-500.0,0.00016438,2]
[394412613,1763542241273,-500.0,0.00016438,2]
[394412614,1763542241287,-500.0,0.00016438,2]
[394412615,1763542241299,-500.0,0.00016438,2]
[394412616,1763542241313,-500.0,0.00016473,2]
[394412617,1763542241323,-500.0,0.00016473,2]
[394412618,1763542241333,-500.0,0.00016473,2]
[394412619,1763542241343,-500.0,0.00016473,2]
[394412620,1763542241353,-506.25578774,0.00016473,2]
[394412621,1763542241363,-500.0,0.00016473,2]
[394412622,1763542241372,-500.0,0.00016473,2]
[394412623,1763542241382,-470.80631433,0.00016473,2]
[394412624,1763542241392,-501.18009364,0.00016473,2]
[394412625,1763542241401,-500.0,0.00016473,2]
[394412626,1763542241411,-500.0,0.00016473,2]
[394412627,1763542241420,-501.65067781,0.00016473,2]
[394412628,1763542241430,-500.0,0.00016473,2]
[394412629,1763542241439,-500.0,0.00016473,2]
[394412630,1763542241449,-500.0,0.00016473,2]
[394412631,1763542241458,-430.05531192,0.00016473,2]
[394412632,1763542241467,-500.0,0.00016473,2]
[394412633,1763542241477,-513.38764164,0.00016473,2]
[394412634,1763542241486,-500.0,0.00016473,2]
[394412635,1763542241496,-500.70555796,0.00016473,2]
[394412636,1763542241505,-500.0,0.00016473,2]
[394412637,1763542241514,-500.0,0.00016473,2]
[394412638,1763542241523,-500.0,0.00016512,2]
[394412639,1763542241537,-1000.0,0.00016521,2]
[394412640,1763542241546,-500.0,0.00016521,2]
[394412641,1763542241555,-1000.0,0.00016521,2]
[394412642,1763542241564,-420.0,0.00016568,2]
[394412643,1763542241574,-1680.0,0.00016569,2]
[394412644,1763542241583,-1000.0,0.00016621,2]
[394412645,1763542241592,-1000.0,0.00016621,2]
[394412646,1763542241601,-763.88541376,0.00016621,2]
[394412647,1763542241611,-1000.0,0.00016621,2]
[394412648,1763542241619,-1000.0,0.00016621,2]